bitfinex/quotes_ETHUSD_20240709
["timestamp","ask_amount","ask_price","bid_price","bid_amount"]
[1720493944843,5.874,3079.4,3078.4,0.43616249]
[1720493946020,7.2119,3079.3,3078.4,0.43616249]
[1720493946254,2.2629,3079.2,3077.2,4.552101]
[1720493946547,4.39648,3079.1,3077.2,3.24968]
[1720493947053,4.39648,3079.1,3077.3,3.24958]
[1720493947351,4.39648,3079.1,3077.4,3.24941]
[1720493947352,2.3225,3079.0,3077.4,3.24941]
[1720493947523,0.326998,3078.9,3077.2,3.24964]
[1720493948050,0.326998,3078.9,3077.3,3.79956]
[1720493948550,0.326998,3078.9,3077.5,3.24938]
[1720493948750,3.326998,3078.9,3077.3,0.55]
[1720493949050,2.3795,3078.7,3076.6,3.25032]
[1720493949417,2.3795,3078.7,3076.7,3.25023]
[1720493949418,4.57475764,3078.6,3076.7,3.25023]
[1720493949763,5.3795,3078.7,3077.1,3.24978]
[1720493950051,5.3795,3078.7,3077.2,0.0649875]
[1720493950256,2.3795,3078.7,3077.5,3.24936]
[1720493950618,2.3795,3078.7,3077.3,3.24959]
[1720493950929,0.23795,3078.6,3076.8,3.25005]
[1720493951241,2.3795,3078.4,3076.5,3.25044]
[1720493951759,5.8285,3078.3,3076.5,3.25044]
[1720493951917,3.0,3078.4,3075.7,0.3264]
[1720493951918,5.8285,3078.2,3076.4,3.25052]
[1720493952122,5.8285,3078.2,3076.3,3.25065]
[1720493952337,5.8285,3078.2,3076.2,1.302882]
[1720493952338,0.58285,3078.1,3076.2,1.302882]
[1720493952538,2.3795,3078.0,3076.2,3.25075]
[1720493952956,4.03185,3078.1,3076.1,1.302901]
[1720493952957,2.3795,3077.8,3076.1,1.302901]
[1720493953249,2.3795,3077.8,3076.0,3.25096]
[1720493953472,2.3795,3077.6,3075.8,3.25116]
[1720493953638,2.3626,3077.4,3075.7,3.25129]
[1720493954077,2.3626,3077.3,3075.5,3.2514]
[1720493954420,2.3626,3077.3,3075.7,3.25128]
[1720493954785,0.53626,3077.2,3075.7,3.25128]
[1720493955222,0.53626,3077.2,3075.3,4.554921]
[1720493955422,0.53626,3077.2,3075.4,3.25159]
[1720493955624,2.4093,3077.1,3075.4,3.25159]
[1720493956063,2.4093,3077.1,3075.2,3.25181]
[1720493956269,2.4093,3077.1,3075.0,3.25201]
[1720493956270,2.4206,3076.9,3075.0,3.25201]
[1720493956468,2.4206,3076.9,3075.0,4.555369]
[1720493956622,2.4206,3076.9,3074.1,3.81005651]
[1720493956623,2.4206,3076.9,3074.9,3.25213]
[1720493957024,2.4206,3076.8,3074.9,3.25213]
[1720493957222,2.4206,3076.6,3074.9,3.25213]
[1720493957825,2.4206,3076.6,3075.6,3.25136]
[1720493958022,2.4206,3076.6,3075.7,0.06501647]
[1720493958226,2.4206,3076.6,3075.4,3.2515]
[1720493958462,2.4206,3076.6,3075.0,0.06501647]
[1720493958463,2.4206,3076.6,3075.2,3.25178]
[1720493958663,2.66266,3076.6,3075.1,3.25192]
[1720493958877,0.09280375,3076.5,3074.8,3.25222]
[1720493959031,2.56104637,3076.4,3074.9,0.55]
[1720493959561,0.09280375,3076.3,3074.9,0.55]
[1720493959771,0.09280375,3076.3,3074.6,3.25244]
[1720493960276,0.09280375,3076.3,3074.7,3.25234]
[1720493960485,0.09280375,3076.3,3074.0,3.31806625]
[1720493960486,2.2855,3076.1,3074.5,3.25249]
[1720493960825,0.09280375,3076.0,3074.5,3.25249]
[1720493961027,0.09280375,3076.0,3074.6,0.06503688]
[1720493961344,0.23783037,3075.9,3074.6,0.06503688]
[1720493961545,0.09280375,3076.0,3074.9,3.25212]
[1720493961741,0.09280375,3076.0,3075.0,0.06503148]
[1720493961952,0.09280375,3076.0,3074.7,3.80224]
[1720493962128,0.23783037,3075.9,3074.7,0.55]
[1720493962325,0.23783037,3075.9,3074.6,3.80245]
[1720493962729,0.23783037,3075.9,3074.6,0.55]
[1720493962950,0.23783037,3075.9,3074.5,0.55]
[1720493963161,2.2855,3075.7,3074.1,3.25294]
[1720493963365,2.2855,3075.7,3074.1,3.31798771]
[1720493963570,2.2855,3075.7,3074.5,3.25251]
[1720493963776,2.2855,3075.7,3074.6,0.06503453]
[1720493964062,2.2855,3075.7,3075.1,3.25183]
[1720493964261,2.2855,3075.7,3075.2,0.06502694]
[1720493964477,2.2855,3075.7,3075.0,3.31704694]
[1720493964677,2.2855,3075.7,3074.7,3.25231]
[1720493964678,2.2855,3075.7,3074.4,3.25256]
[1720493964972,0.22855,3075.6,3074.5,3.80255]
[1720493965174,0.22855,3075.6,3074.3,3.25276]
[1720493965473,0.22855,3075.6,3074.2,3.25286]
[1720493965694,0.251405,3075.5,3074.2,3.25286]
[1720493965846,0.251405,3075.5,3073.9,3.25318]
[1720493966248,0.251405,3075.5,3073.9,0.06504775]
[1720493966574,2.2855,3075.7,3074.3,3.25271]
[1720493966876,2.2855,3075.7,3074.8,3.25214]
[1720493967378,2.2855,3075.7,3074.2,3.25286]
[1720493967577,0.22855,3075.6,3074.2,3.25286]
[1720493967881,0.22855,3075.6,3074.1,3.25298]
[1720493968250,2.4749,3075.5,3074.1,3.25298]
[1720493968943,2.4749,3075.5,3073.9,3.25319]
[1720493969158,2.4749,3075.5,3074.0,0.55]
[1720493971257,2.4749,3075.4,3073.8,3.25329]
[1720493971478,0.355132,3075.9,3075.8,3.25118]
[1720493971479,2e-06,3075.9,3075.8,3.25118]
[1720493971653,0.0059124,3078.8,3077.1,3.24971]
[1720493971848,0.0059124,3078.8,3076.5,1.5]
[1720493971849,0.0059124,3078.8,3077.6,3.24927]
[1720493972060,0.0059124,3078.8,3077.3,0.06496809]
[1720493972812,0.0059124,3078.8,3077.5,3.24938]
[1720493972978,0.0059124,3078.8,3077.8,3.24903]
[1720493973363,0.0059124,3078.8,3077.9,3.31386047]
[1720493973560,0.0059124,3078.8,3077.9,3.24888]
[1720493973862,0.0059124,3078.8,3078.3,3.24852]
[1720493974193,0.0059124,3078.8,3077.8,3.24898]
[1720493974395,0.0059124,3078.8,3077.9,0.6149688]
[1720493974621,0.0059124,3078.8,3078.0,3.24883]
[1720493974962,0.0059124,3078.8,3078.1,3.3137188]
[1720493975201,0.0059124,3078.8,3078.3,3.24846]
[1720493975407,0.0059124,3078.8,3078.4,3.31332159]
[1720493975739,0.0059124,3078.8,3078.2,3.24864]
[1720493975913,0.0059124,3078.8,3078.4,0.06496159]
[1720493976195,0.0059124,3078.8,3078.0,3.24878]
[1720493976411,0.0059124,3078.8,3077.8,3.24905]
[1720493976715,0.0059124,3078.8,3077.8,3.24902]
[1720493978001,0.0059124,3078.8,3078.2,3.24863]
[1720493978887,0.0059124,3078.8,3078.3,0.61496688]
[1720493979200,0.0059124,3078.8,3078.3,0.06496688]
[1720493979609,0.0059124,3078.8,3078.7,6.49624]
[1720493979803,0.0059124,3078.8,3078.7,7.04624]
[1720493980007,0.0059124,3078.8,3078.7,10.29436]
[1720493980848,0.0059124,3078.8,3078.7,13.54248]
[1720493981460,0.0059124,3078.8,3078.7,10.29436]
[1720493982264,0.0059124,3078.8,3078.7,8.348005]
[1720493982443,0.0059124,3078.8,3078.7,6.49624]
[1720493982756,0.0059124,3078.8,3078.5,3.24824]
[1720493983044,0.0059124,3078.8,3078.3,4.550419]
[1720493983467,0.0059124,3078.8,3078.3,1.301889]
[1720493983753,0.0059124,3078.8,3076.9,3.25]
[1720493983754,0.24492364,3078.8,3076.9,3.25]
[1720493983952,0.24492364,3078.8,3077.2,3.2497]
[1720493984255,2.3842,3078.7,3077.5,3.24936]
[1720493984407,2.3842,3078.7,3077.7,3.24907]
[1720493984608,2.3842,3078.7,3077.8,3.31395245]
[1720493984810,2.62321124,3078.7,3077.9,3.24894]
[1720493985042,2.3842,3078.7,3077.9,0.06497118]
[1720493985245,2.3842,3078.7,3077.6,3.24927]
[1720493986132,2.3842,3078.7,3077.8,3.24904]
[1720493986537,2.3842,3078.7,3077.6,3.24927]
[1720493986778,0.23901124,3078.6,3077.7,0.55]
[1720493987084,0.23901124,3078.6,3077.3,3.24959]
[1720493987265,0.23901124,3078.6,3077.4,3.24949]
[1720493987565,0.26232112,3078.5,3077.3,3.24959]
[1720493987882,2.3842,3078.7,3078.2,3.24859]
[1720493988096,0.0059124,3078.8,3078.7,6.49624]
[1720493988392,0.005,3080.9,3080.4,3.24627]
[1720493988393,2.3842,3080.8,3080.4,3.24627]
[1720493988557,2.3842,3080.8,3080.5,3.24617]
[1720493989068,0.005,3080.9,3080.6,3.24605]
[1720493989241,0.005,3080.9,3080.5,3.31108466]
[1720493989439,0.005,3080.9,3080.3,3.24643]
[1720493989645,0.005,3080.9,3080.4,0.55]
[1720493990083,0.005,3080.9,3080.5,3.24618]
[1720493990286,0.005,3080.9,3080.4,3.79627]
[1720493990582,0.005,3080.9,3080.4,0.55]
[1720493990795,0.005,3080.9,3080.3,0.55]
[1720493991031,0.005,3080.9,3080.1,0.55]
[1720493992047,2.4751,3080.8,3079.6,3.24716]
[1720493992197,0.24801,3080.7,3079.7,0.06492914]
[1720493992396,0.24801,3080.7,3079.9,3.24685]
[1720493992591,0.24801,3080.7,3080.0,0.06492742]
[1720493992793,0.24801,3080.7,3079.3,0.06492742]
[1720493992984,0.272311,3080.6,3079.8,3.24696]
[1720493993184,0.272311,3080.6,3080.0,3.24666]
[1720493994081,0.272311,3080.6,3079.9,3.24685]
[1720493994280,0.272311,3080.6,3078.8,3.449]
[1720493994281,0.272311,3080.6,3079.1,0.06492456]
[1720493994497,0.272311,3080.6,3079.7,3.24699]
[1720493995083,0.272311,3080.6,3079.8,3.24693]
[1720493995280,2.4751,3080.8,3079.8,3.24693]
[1720493995281,2.4751,3080.8,3080.0,3.24669]
[1720493995503,2.4751,3080.8,3080.1,3.31155425]
[1720493995690,2.4751,3080.8,3080.5,3.24621]
[1720493996091,2.4751,3080.8,3080.3,3.2464]
[1720493996510,0.005,3080.9,3080.8,3.24591]
[1720493997117,0.005,3081.3,3081.2,6.49096]
[1720493997281,0.005,3081.3,3081.2,7.105858]
[1720493997486,0.005,3081.3,3080.8,0.55]
[1720493997487,0.005,3081.3,3080.8,3.2459]
[1720493997706,0.005,3081.3,3080.5,3.2462]
[1720493997905,2.3321,3081.2,3080.4,3.24631]
[1720493998103,0.23371,3081.1,3080.2,0.06491617]
[1720493998314,0.23371,3081.1,3080.1,0.0649187]
[1720493998532,0.23371,3081.1,3080.5,3.24621]
[1720493998729,0.256581,3081.0,3080.6,0.06491531]
[1720493999131,2.3321,3081.2,3080.6,0.06491531]
[1720493999331,2.3321,3081.2,3080.8,3.2458]
[1720493999517,2.3321,3081.2,3080.9,3.31067839]
[1720493999718,2.3321,3081.2,3080.7,3.24593]
[1720493999925,2.3321,3081.2,3080.8,0.55]
[1720494000247,2.3321,3081.2,3079.7,3.424]
[1720494000248,2.56581,3081.2,3078.8,3.57432]
[1720494000431,2.56581,3081.2,3079.9,3.24681]
[1720494000611,2.56581,3081.2,3079.0,4.74771]
[1720494000612,2.3321,3081.2,3080.3,3.24636]
[1720494000807,2.3321,3081.2,3080.0,3.24673]
[1720494001043,2.3321,3081.2,3080.3,3.24642]
[1720494001248,2.3321,3081.2,3080.4,0.06490971]
[1720494001452,2.3321,3081.2,3080.9,3.24571]
[1720494001751,2.3321,3081.2,3080.2,3.24652]
[1720494001962,2.3321,3081.2,3080.4,3.24633]
[1720494002250,2.3321,3081.2,3080.3,0.06491541]
[1720494002553,2.3321,3081.2,3080.5,3.24619]
[1720494002854,2.3321,3081.2,3080.4,3.24633]
[1720494002855,2.56581,3081.2,3080.4,3.24633]
[1720494003310,2.56581,3081.2,3080.2,3.31144818]
[1720494003311,2.56581,3081.2,3080.3,3.24643]
[1720494003516,2.56581,3081.2,3080.4,0.55]
[1720494003843,2.56581,3081.2,3079.7,3.24702]
[1720494004048,0.257081,3081.1,3079.7,3.24702]
[1720494004409,0.257081,3081.1,3078.8,0.3264]
[1720494004410,2.3865,3081.0,3079.8,0.06493008]
[1720494004815,2.3865,3081.0,3079.6,3.24717]
[1720494005851,2.3835,3081.0,3079.6,3.24717]
[1720494006155,2.3835,3081.0,3079.4,3.3122734]
[1720494006359,0.23835,3080.9,3079.4,3.3122734]
[1720494007025,0.23835,3080.9,3079.5,0.55]
[1720494007227,0.23835,3080.9,3079.6,3.24715]
[1720494007426,0.23835,3080.9,3079.9,3.24684]
[1720494007616,0.23835,3080.9,3080.0,0.06492686]
[1720494007818,0.262185,3080.8,3080.0,0.06492686]
[1720494008012,2.3835,3081.0,3080.0,0.06492686]
[1720494008217,2.3835,3081.0,3080.1,3.79655]
[1720494008417,2.3835,3081.0,3079.8,3.24686]
[1720494008648,2.3835,3081.0,3078.9,0.3264]
[1720494008649,2.3835,3081.0,3079.6,3.24717]
[1720494008854,0.23835,3080.9,3079.7,0.55]
[1720494009013,0.23835,3080.9,3079.4,3.24731]
[1720494009222,0.23835,3080.9,3079.0,0.06492986]
[1720494009223,2.4772,3080.7,3077.8,3.24905]
[1720494009556,2.62335,3080.9,3078.0,3.24878]
[1720494009557,2.4772,3079.9,3078.0,3.24878]
[1720494009851,2.4772,3079.4,3077.4,3.24941]
[1720494010032,2.4772,3079.4,3077.5,0.06497271]
[1720494010230,2.4772,3079.2,3077.6,3.2492]
[1720494010750,2.4772,3079.2,3077.4,3.09941]
[1720494010963,2.4772,3079.2,3077.5,0.06497609]
[1720494011134,2.4772,3079.2,3077.6,3.24919]
[1720494011453,2.4772,3079.2,3077.7,0.06497482]
[1720494011648,2.4772,3079.2,3077.5,0.06497481]
[1720494011649,0.54772,3079.1,3077.5,0.06497481]
[1720494012228,0.54772,3079.1,3077.5,3.31433481]
[1720494012429,0.54772,3079.1,3077.9,3.24894]
[1720494012635,2.4772,3079.2,3077.7,3.24915]
[1720494012837,2.4772,3079.2,3077.6,3.24928]
[1720494013031,0.24772,3079.1,3077.7,0.55]
[1720494013293,0.24772,3079.1,3077.3,3.24957]
[1720494013490,3.424,3079.0,3076.9,3.24994]
[1720494013635,2.2634,3078.7,3076.9,3.24994]
[1720494013974,5.8827,3078.5,3075.9,3.31599794]
[1720494014305,2.4587,3078.3,3076.3,3.25056]
[1720494014579,2.4587,3078.3,3076.5,3.25044]
[1720494014887,2.4587,3078.1,3076.3,3.25056]
[1720494015238,2.4587,3078.0,3076.3,3.25056]
[1720494015434,2.4587,3078.0,3076.0,3.25092]
[1720494015759,2.4587,3078.0,3075.4,1.45125302]
[1720494015760,2.4676,3077.8,3076.1,3.25086]
[1720494016267,2.4676,3077.7,3076.1,3.25086]
[1720494016470,2.4676,3077.7,3075.9,3.25103]
[1720494016679,3.01436,3077.6,3076.0,3.3158773]
[1720494016839,2.4676,3077.6,3076.6,3.25027]
[1720494017041,2.4676,3077.6,3076.3,3.25063]
[1720494017387,2.71436,3077.6,3076.1,3.25084]
[1720494017835,2.71436,3077.6,3076.1,3.31584475]
[1720494018038,2.71436,3077.6,3076.2,0.55]
[1720494018238,0.271436,3077.5,3076.2,0.55]
[1720494018468,0.271436,3077.5,3076.3,0.06500474]
[1720494018673,2.4676,3077.6,3076.8,3.25012]
[1720494018873,2.4676,3077.6,3076.4,0.06500474]
[1720494018874,2.4676,3077.6,3076.4,3.25051]
[1720494019040,2.4676,3077.6,3076.5,0.55]
[1720494019245,2.4174,3077.4,3075.8,3.2511]
[1720494019551,2.4174,3077.4,3075.9,0.06501065]
[1720494019944,2.4174,3077.4,3076.2,3.25076]
[1720494020164,2.4174,3077.4,3075.9,3.31600065]
[1720494020341,0.24174,3077.3,3076.0,3.25097]
[1720494020538,0.24174,3077.3,3075.9,0.06500453]
[1720494021071,0.24174,3077.3,3076.0,0.55]
[1720494021250,0.265914,3077.2,3076.1,0.06500932]
[1720494021450,0.265914,3077.2,3076.2,3.80073]
[1720494021651,2.4174,3077.4,3076.3,0.06500467]
[1720494022050,2.4174,3077.4,3076.2,0.55]
[1720494022281,2.4174,3077.4,3075.7,3.25126]
[1720494022488,2.4174,3077.4,3075.6,3.25137]
[1720494022674,2.4174,3077.4,3074.9,3.25207]
[1720494022675,2.2889,3077.3,3074.9,3.25207]
[1720494023001,2.2889,3077.3,3075.1,4.727158]
[1720494023158,2.2889,3077.3,3076.5,3.25042]
[1720494023359,2.2889,3077.3,3076.6,3.31523646]
[1720494023750,2.2889,3077.3,3076.0,0.06499292]
[1720494023951,2.2889,3077.3,3076.3,3.25061]
[1720494024151,2.2889,3077.3,3076.4,3.80053]
[1720494024461,2.2889,3077.3,3076.5,0.55]
[1720494024959,2.51779,3077.3,3076.5,0.55]
[1720494025159,2.51779,3077.3,3076.1,3.25084]
[1720494025350,2.51779,3077.3,3076.0,3.2509]
[1720494025552,0.251779,3077.2,3076.1,0.55]
[1720494025790,0.251779,3077.2,3076.1,3.80086]
[1720494026354,0.251779,3077.2,3076.1,0.55]
[1720494026583,0.251779,3077.2,3076.1,3.80086]
[1720494026886,0.2540679,3077.1,3076.1,3.80086]
[1720494027071,0.2540679,3077.1,3076.1,0.55]
[1720494027383,0.2540679,3077.1,3076.1,3.25086]
[1720494027582,0.2540679,3077.1,3076.2,0.55]
[1720494028206,0.2540679,3077.1,3076.1,3.25086]
[1720494028207,2.4296,3077.0,3075.6,3.25137]
[1720494028347,2.4296,3077.0,3075.4,3.2516]
[1720494028551,2.4296,3077.0,3074.9,3.25213]
[1720494028552,2.4296,3077.0,3075.5,0.0650176]
[1720494028753,2.4296,3077.0,3075.7,3.25119]
[1720494028995,2.67256,3077.0,3075.8,3.31613162]
[1720494029866,2.67256,3077.0,3075.6,3.31634067]
[1720494030181,0.267256,3076.9,3075.5,3.25148]
[1720494030389,2.2801,3076.8,3075.5,3.31649747]
[1720494031071,2.2801,3076.8,3075.5,0.06501747]
[1720494031275,2.2801,3076.8,3075.9,3.25107]
[1720494031498,2.2801,3076.8,3075.7,3.25127]
[1720494031996,2.2801,3076.8,3075.8,0.61501062]
[1720494032165,2.2801,3076.8,3075.5,3.25147]
[1720494032499,2.2801,3076.8,3075.6,0.55]
[1720494032800,2.2801,3076.8,3075.3,3.25169]
[1720494032962,2.3013,3076.6,3075.1,3.25185]
[1720494033166,2.3013,3076.6,3074.9,3.25211]
[1720494033365,2.3013,3076.6,3074.9,3.25207]
[1720494033567,2.3013,3076.6,3075.0,3.25202]
[1720494033782,2.4813,3076.4,3075.0,3.25202]
[1720494033985,2.4813,3076.4,3074.8,3.2522]
[1720494034190,2.4813,3076.4,3074.7,0.06502593]
[1720494034191,2.4813,3076.4,3074.9,3.31714975]
[1720494034375,2.4813,3076.4,3075.0,3.25202]
[1720494034579,2.4813,3076.4,3075.1,0.06502714]
[1720494034866,2.4813,3076.4,3075.0,3.25199]
[1720494035068,2.4813,3076.4,3075.2,3.2518]
[1720494035567,2.4813,3076.4,3074.7,3.25234]
[1720494036306,2.4813,3076.4,3074.8,3.25221]
[1720494036501,0.24813,3076.3,3074.8,3.25221]
[1720494037011,0.24813,3076.3,3074.9,0.55]
[1720494037401,2.4917,3076.2,3074.9,0.55]
[1720494039538,2.4917,3076.2,3074.9,3.80209]
[1720494039694,2.4917,3076.2,3075.1,3.25187]
[1720494039896,2.4917,3076.2,3075.2,0.61502364]
[1720494040098,2.4917,3076.2,3075.5,3.25147]
[1720494040348,1.81264939,3076.2,3075.8,3.25118]
[1720494040505,1.81264939,3076.2,3075.9,0.55]
[1720494040710,5.687,3078.0,3076.2,3.25075]
[1720494040938,5.687,3078.0,3076.4,3.25054]
[1720494040939,0.5687,3077.9,3076.4,3.25054]
[1720494041095,2.263,3078.0,3076.5,0.06499986]
[1720494041510,2.263,3078.0,3076.5,3.31533986]
[1720494041730,3.424,3078.4,3076.6,0.55]
[1720494041930,1.69460626,3078.3,3076.7,0.06499214]
[1720494042130,1.69460626,3078.3,3076.6,0.55]
[1720494042131,1.12590626,3078.2,3076.8,0.06498806]
[1720494042330,0.34029871,3078.8,3077.2,3.24961]
[1720494042629,2.5829288,3079.2,3077.0,3.24983]
[1720494042832,4.95793152,3079.1,3077.1,0.55]
[1720494043134,3.424,3078.6,3076.6,3.86530893]
[1720494043327,2.3783,3078.4,3076.7,3.25023]
[1720494043534,2.4464,3078.2,3076.6,0.55]
[1720494043731,1.12585875,3078.1,3076.6,0.55]
[1720494043934,2.4464,3078.2,3076.7,3.25021]
[1720494044231,2.4464,3078.2,3076.8,0.06499332]
[1720494044430,2.4464,3078.2,3077.2,3.24969]
[1720494044594,2.4464,3078.2,3076.6,0.55]
[1720494044799,2.4464,3078.2,3076.5,3.25041]
[1720494045133,1.12592196,3078.1,3076.5,3.25041]
[1720494045433,1.12595204,3078.0,3076.3,3.25065]
[1720494045640,2.4523,3078.1,3076.4,0.55]
[1720494045796,2.3381,3077.9,3076.4,0.55]
[1720494046130,2.3381,3077.7,3076.3,3.80056]
[1720494046334,2.3381,3077.7,3076.3,0.55]
[1720494046700,2.3381,3077.7,3076.3,3.80061]
[1720494047224,2.3381,3077.7,3076.4,3.25054]
[1720494047415,2.3381,3077.7,3076.9,3.25]
[1720494047935,2.3381,3077.7,3077.0,0.55]
[1720494048428,2.57191,3077.7,3076.4,3.25054]
[1720494048647,2.57191,3077.7,3076.5,0.55]
[1720494049205,2.57191,3077.7,3076.5,3.80041]
[1720494049409,2.3381,3077.7,3076.8,3.25004]
[1720494049611,2.3381,3077.7,3076.9,3.86499021]
[1720494050010,2.3381,3077.7,3077.1,3.24973]
[1720494050209,2.22644827,3079.1,3077.2,0.06498535]
[1720494050210,2.4853,3078.3,3077.2,0.06498535]
[1720494050418,2.4853,3078.3,3078.0,3.24884]
[1720494050647,2.4853,3078.3,3077.3,3.86450101]
[1720494050648,2.4853,3079.2,3078.3,3.24845]
[1720494050824,2.4853,3079.2,3078.9,3.24788]
[1720494051379,2.4853,3080.5,3078.9,3.31282971]
[1720494051528,2.4853,3080.5,3079.0,0.61494654]
[1720494051529,0.42706,3080.4,3079.0,0.61494654]
[1720494051840,2.4853,3080.5,3079.2,3.24754]
[1720494052050,2.4853,3080.5,3079.0,3.79776]
[1720494052387,2.4294,3080.3,3078.7,3.24811]
[1720494052592,2.4294,3081.0,3078.8,0.0649485]
[1720494052875,0.24294,3080.9,3079.5,3.24727]
[1720494053044,0.24294,3080.9,3079.0,0.06493495]
[1720494053248,2.3712,3080.8,3079.1,0.55]
[1720494053551,2.4238,3080.7,3079.1,3.24768]
[1720494054386,2.4238,3080.7,3079.4,3.24735]
[1720494055587,2.4238,3080.7,3079.2,3.31251643]
[1720494055588,2.4238,3080.7,3079.5,3.31220641]
[1720494055733,2.4238,3080.7,3079.5,0.06493641]
[1720494055932,2.4238,3080.7,3080.0,3.24667]
[1720494056169,2.4238,3080.7,3079.8,3.24693]
[1720494056968,2.4238,3080.7,3079.6,0.55]
[1720494057190,2.66618,3080.7,3079.6,3.79716]
[1720494057334,2.66618,3080.7,3078.8,3.24796]
[1720494057645,2.66618,3080.7,3079.0,3.2477]
[1720494057965,2.3357,3080.5,3079.1,3.2477]
[1720494058686,2.3357,3080.5,3078.8,3.24796]
[1720494059046,2.3357,3080.5,3078.5,3.24833]
[1720494059250,3.424,3080.4,3078.5,3.24832]
[1720494059447,2.3744,3080.2,3077.8,0.3264]
[1720494059679,2.4105,3080.1,3078.2,3.24857]
[1720494059885,5.8345,3079.9,3077.8,3.57544]
[1720494060030,5.8345,3079.8,3077.8,3.57544]
[1720494060378,0.58345,3079.7,3077.8,0.3264]
[1720494060574,2.4105,3079.5,3077.6,3.24927]
[1720494060737,2.4105,3079.5,3077.8,3.24907]
[1720494060935,2.4105,3079.5,3078.2,3.24862]
[1720494061156,2.4105,3079.5,3077.9,0.06496916]
[1720494061157,2.4105,3079.5,3078.6,3.24814]
[1720494061479,2.4105,3079.5,3078.7,3.3129734]
[1720494061773,2.4105,3079.5,3078.4,3.2484]
[1720494061935,0.24105,3079.4,3077.9,3.57535]
[1720494062129,2.3297,3079.3,3076.7,0.3548266]
[1720494062440,2.3297,3079.3,3078.1,1.30192]
[1720494062640,2.3297,3079.3,3078.1,4.61563431]
[1720494062853,2.3297,3079.3,3077.5,3.24936]
[1720494063072,2.3297,3079.3,3077.3,4.55176]
[1720494063271,2.4501,3079.0,3077.3,1.30221]
[1720494063441,2.4501,3079.0,3077.1,0.3264]
[1720494063991,2.4501,3079.0,3077.6,3.24925]
[1720494064192,2.2723,3079.9,3077.7,0.06496479]
[1720494064475,2.2723,3079.9,3078.2,3.24862]
[1720494064638,3.424,3079.7,3077.8,3.24897]
[1720494064829,4.5,3080.0,3077.4,3.24947]
[1720494064830,5.6963,3079.4,3077.4,3.24947]
[1720494065035,2.2723,3079.2,3077.5,0.55]
[1720494065257,2.2723,3079.2,3077.6,0.06497685]
[1720494065470,2.2723,3079.2,3077.7,0.55]
[1720494065769,0.22723,3079.1,3077.7,0.61497328]
[1720494065955,0.21911061,3079.1,3077.7,0.55]
[1720494066161,2.2723,3079.0,3077.2,3.24967]
[1720494066471,2.4897,3078.8,3077.0,3.24985]
[1720494066967,2.4897,3078.7,3076.8,3.25009]
[1720494067195,3.10598411,3078.7,3077.0,3.24991]
[1720494067390,3.10598411,3078.7,3076.8,3.2501]
[1720494067601,6.52998411,3078.7,3076.6,1.302556]
[1720494067876,0.24914106,3078.9,3076.3,3.25059]
[1720494067877,2.4418,3078.0,3076.3,3.25059]
[1720494068047,0.58658,3077.9,3076.4,3.25053]
[1720494069078,0.58658,3077.9,3076.3,3.25059]
[1720494069439,0.58658,3077.9,3076.7,3.25014]
[1720494069646,2.4418,3078.0,3075.9,1.302846]
[1720494069647,2.4418,3078.0,3076.3,3.25059]
[1720494069869,2.4418,3078.0,3076.4,0.0649978]
[1720494070071,2.4418,3078.0,3076.6,3.25026]
[1720494070884,2.4418,3078.0,3076.0,0.06499526]
[1720494070885,2.4418,3078.0,3076.7,0.06499515]
[1720494071180,2.4418,3078.0,3077.2,3.24961]
[1720494071416,2.4418,3078.0,3076.8,0.61498575]
[1720494071417,2.4418,3078.0,3077.4,3.24941]
[1720494071549,2.4589,3078.8,3077.6,3.24918]
[1720494071753,2.4589,3078.8,3077.4,3.24941]
[1720494071949,2.4589,3078.8,3077.0,3.24984]
[1720494072174,3.424,3078.7,3076.9,3.24996]
[1720494072379,3.424,3078.7,3075.9,1.6576726]
[1720494072380,2.3706,3078.2,3076.5,3.25041]
[1720494072582,2.3706,3078.2,3076.3,3.25065]
[1720494072583,2.3706,3078.1,3076.3,3.25065]
[1720494072800,2.3706,3078.0,3076.3,3.25065]
[1720494072961,2.3706,3078.0,3076.4,3.25054]
[1720494073161,0.57946,3077.9,3076.4,3.25054]
[1720494073359,0.57946,3077.9,3076.3,0.06500204]
[1720494073604,0.57946,3077.9,3076.6,3.25032]
[1720494073756,2.3706,3078.0,3076.7,3.31522819]
[1720494074098,2.3706,3078.0,3076.8,0.06499816]
[1720494074383,2.3706,3078.0,3076.7,3.25014]
[1720494074572,2.60766,3078.0,3076.7,3.25014]
[1720494074883,2.60766,3078.0,3076.3,3.25062]
[1720494075050,2.60766,3078.0,3076.1,3.25085]
[1720494075051,2.4766,3077.9,3076.1,3.25085]
[1720494075246,5.9006,3077.8,3075.9,3.57744]
[1720494075479,2.4766,3077.3,3075.5,3.25148]
[1720494075688,2.4766,3077.2,3075.5,3.25148]
[1720494075851,2.4151,3077.0,3075.3,3.25167]
[1720494076051,3.0,3077.7,3075.0,3.252]
[1720494076052,2.4151,3076.8,3075.2,4.554894]
[1720494076299,0.58391,3076.7,3075.2,1.303114]
[1720494076497,2.4151,3076.8,3076.3,3.25063]
[1720494076653,2.2772,3077.9,3076.5,3.25037]
[1720494076852,2.2772,3077.9,3076.4,3.25052]
[1720494077359,2.2772,3077.9,3076.3,3.31562997]
[1720494077360,2.2772,3077.9,3076.5,3.25036]
[1720494077984,2.2772,3077.9,3076.5,3.31535995]
[1720494078185,2.2772,3077.9,3076.5,3.25036]
[1720494078385,2.2785,3077.7,3076.2,3.25075]
[1720494079083,2.2562,3077.5,3075.9,3.25105]
[1720494079914,2.2562,3077.5,3076.0,0.06501093]